[Event "*** MasterClass Titled Tuesday Blitz"]
[Site "Chess.com"]
[Date "2017.12.05"]
[Round "6"]
[White "chessking2151"]
[Black "dawtonlms"]
[Result "1-0"]
[WhiteElo "2344"]
[BlackElo "2237"]
[TimeControl "180+2"]
[EndTime "15:31:49 PST"]
[Termination "chessking2151 won by checkmate"]

1. e4 {[%clk 0:03:01.9]} 1... e6 {[%clk 0:03:00.2]} 2. d4 {[%clk 0:03:01]} 2...
d5 {[%clk 0:03:01.4]} 3. Nd2 {[%clk 0:03:02.6]} 3... Nf6 {[%clk 0:03:02.1]} 4.
e5 {[%clk 0:03:03.1]} 4... Nfd7 {[%clk 0:03:03.5]} 5. f4 {[%clk 0:03:04.5]} 5...
c5 {[%clk 0:03:05]} 6. Ngf3 {[%clk 0:03:05.7]} 6... Nc6 {[%clk 0:03:05.8]} 7.
Nb3 {[%clk 0:03:06.2]} 7... f6 {[%clk 0:02:59.3]} 8. exf6 {[%clk 0:03:05.6]}
8... Qxf6 {[%clk 0:03:00.3]} 9. c3 {[%clk 0:03:05.7]} 9... Bd6 {[%clk
0:03:00.4]} 10. g3 {[%clk 0:03:02.1]} 10... O-O {[%clk 0:03:00.9]} 11. Be3
{[%clk 0:03:01.2]} 11... b6 {[%clk 0:02:55.6]} 12. Bb5 {[%clk 0:02:59.8]} 12...
Bb7 {[%clk 0:02:56.3]} 13. O-O {[%clk 0:02:59.3]} 13... a6 {[%clk 0:02:57.2]}
14. Be2 {[%clk 0:02:59.6]} 14... b5 {[%clk 0:02:56.6]} 15. dxc5 {[%clk
0:02:59.4]} 15... Be7 {[%clk 0:02:51.5]} 16. Qd2 {[%clk 0:02:57.6]} 16... Kh8
{[%clk 0:02:49.2]} 17. Bd4 {[%clk 0:02:55.3]} 17... Qh6 {[%clk 0:02:47.4]} 18.
Rae1 {[%clk 0:02:51.6]} 18... Rae8 {[%clk 0:02:42.9]} 19. Bd3 {[%clk 0:02:31.7]}
19... Bf6 {[%clk 0:02:39.2]} 20. Be3 {[%clk 0:02:18.4]} 20... Qh3 {[%clk
0:02:33.9]} 21. Qg2 {[%clk 0:02:16.2]} 21... Qxg2+ {[%clk 0:02:31.4]} 22. Kxg2
{[%clk 0:02:18.1]} 22... e5 {[%clk 0:02:32.6]} 23. Bf5 {[%clk 0:01:44.8]} 23...
exf4 {[%clk 0:02:30.7]} 24. Bxf4 {[%clk 0:01:39.4]} 24... Nde5 {[%clk
0:02:27.6]} 25. Nxe5 {[%clk 0:01:36.2]} 25... Nxe5 {[%clk 0:02:28.1]} 26. Nd4
{[%clk 0:01:34.9]} 26... g6 {[%clk 0:02:25.9]} 27. Bc2 {[%clk 0:01:32.6]} 27...
Nc4 {[%clk 0:02:19]} 28. b4 {[%clk 0:01:30.3]} 28... a5 {[%clk 0:02:06.3]} 29.
Bh6 {[%clk 0:01:24.2]} 29... Rxe1 {[%clk 0:02:03.7]} 30. Rxe1 {[%clk 0:01:26.1]}
30... Ra8 {[%clk 0:02:00.7]} 31. c6 {[%clk 0:01:19.4]} 31... Ba6 {[%clk
0:01:58.1]} 32. Re6 {[%clk 0:01:13.6]} 32... Bxd4 {[%clk 0:01:39.2]} 33. cxd4
{[%clk 0:01:15.5]} 33... axb4 {[%clk 0:01:40.7]} 34. c7 {[%clk 0:01:16.1]} 34...
Bb7 {[%clk 0:01:38.6]} 35. Kg1 {[%clk 0:00:51]} 35... Kg8 {[%clk 0:01:32]} 36.
Rf6 {[%clk 0:00:45.6]} 36... Rc8 {[%clk 0:01:27.8]} 37. Bd1 {[%clk 0:00:44.8]}
37... Re8 {[%clk 0:00:33]} 38. Bg4 {[%clk 0:00:33.2]} 38... Bc8 {[%clk
0:00:34.3]} 39. Bf3 {[%clk 0:00:29.2]} 39... Bb7 {[%clk 0:00:32.6]} 40. Bg4
{[%clk 0:00:17.8]} 40... Bc8 {[%clk 0:00:33.3]} 41. Bf3 {[%clk 0:00:16.7]} 41...
Bb7 {[%clk 0:00:34.3]} 42. h4 {[%clk 0:00:18.3]} 42... Ra8 {[%clk 0:00:18.1]}
43. Bg4 {[%clk 0:00:12.9]} 43... Bc8 {[%clk 0:00:18.4]} 44. Rf8# {[%clk
0:00:13.6]} 1-0

[Event "*** MasterClass Titled Tuesday Blitz"]
[Site "Chess.com"]
[Date "2017.12.05"]
[Round "6"]
[White "Msb2"]
[Black "Swarnapuri"]
[Result "1-0"]
[WhiteElo "2706"]
[BlackElo "2401"]
[TimeControl "180+2"]
[EndTime "15:31:55 PST"]
[Termination "Msb2 won by resignation"]

1. d4 {[%clk 0:03:01.9]} 1... d5 {[%clk 0:03:00.6]} 2. c4 {[%clk 0:03:02.3]}
2... Nc6 {[%clk 0:03:01.9]} 3. Nc3 {[%clk 0:03:02.9]} 3... Nf6 {[%clk
0:03:02.6]} 4. Nf3 {[%clk 0:03:01.5]} 4... dxc4 {[%clk 0:03:02.9]} 5. e4 {[%clk
0:03:00]} 5... Bg4 {[%clk 0:03:02.9]} 6. Be3 {[%clk 0:02:58.2]} 6... e6 {[%clk
0:02:59.9]} 7. Bxc4 {[%clk 0:02:58.2]} 7... Bb4 {[%clk 0:03:00.4]} 8. Qd3 {[%clk
0:02:58.9]} 8... Bxf3 {[%clk 0:02:57.3]} 9. gxf3 {[%clk 0:03:00.8]} 9... Qe7
{[%clk 0:02:45.5]} 10. Rg1 {[%clk 0:02:57.9]} 10... Nh5 {[%clk 0:02:43.6]} 11.
Bb5 {[%clk 0:02:52.2]} 11... O-O {[%clk 0:02:35.6]} 12. a3 {[%clk 0:02:44.1]}
12... Ba5 {[%clk 0:02:24.7]} 13. Rg5 {[%clk 0:02:41]} 13... g6 {[%clk
0:02:03.3]} 14. Bxc6 {[%clk 0:02:41.3]} 14... Bxc3+ {[%clk 0:02:04.3]} 15. Qxc3
{[%clk 0:02:43.2]} 15... bxc6 {[%clk 0:02:06]} 16. Qxc6 {[%clk 0:02:43.8]} 16...
Rab8 {[%clk 0:02:02.3]} 17. b4 {[%clk 0:02:43.8]} 17... Rfd8 {[%clk 0:02:01]}
18. Rc1 {[%clk 0:02:42.7]} 18... Qf6 {[%clk 0:01:41.8]} 19. e5 {[%clk
0:02:12.8]} 19... Qe7 {[%clk 0:01:42.5]} 20. Qxc7 {[%clk 0:02:09.3]} 20... Qe8
{[%clk 0:01:42.7]} 21. Qa5 {[%clk 0:01:29.2]} 21... Ng7 {[%clk 0:01:35.4]} 22.
d5 {[%clk 0:00:50.2]} 22... Rxd5 {[%clk 0:01:22.5]} 23. Qxa7 {[%clk 0:00:50.9]}
23... Nf5 {[%clk 0:01:17.2]} 24. Rg4 {[%clk 0:00:44.6]} 24... Rxe5 {[%clk
0:01:12]} 25. Rgc4 {[%clk 0:00:44.2]} 25... Rd8 {[%clk 0:01:02]} 26. a4 {[%clk
0:00:30.2]} 26... Kg7 {[%clk 0:00:54.6]} 27. R1c3 {[%clk 0:00:26.2]} 27... Red5
{[%clk 0:00:46.1]} 28. b5 {[%clk 0:00:20.1]} 28... Ra8 {[%clk 0:00:43.8]} 29.
Qb7 {[%clk 0:00:18.1]} 29... Nd6 {[%clk 0:00:37.1]} 30. Qc6 {[%clk 0:00:18]}
30... Nxc4 {[%clk 0:00:29.9]} 31. Qxe8 {[%clk 0:00:18.8]} 31... Rxe8 {[%clk
0:00:31.4]} 32. Rxc4 {[%clk 0:00:20.3]} 32... Ra8 {[%clk 0:00:27.4]} 33. Rb4
{[%clk 0:00:21.6]} 33... Rd7 {[%clk 0:00:23.3]} 34. Ke2 {[%clk 0:00:20.9]} 34...
e5 {[%clk 0:00:23.5]} 35. b6 {[%clk 0:00:20.1]} 35... Rb7 {[%clk 0:00:23.8]} 36.
Bc5 {[%clk 0:00:21.1]} 36... Kf6 {[%clk 0:00:24.6]} 37. Kd3 {[%clk 0:00:22.6]}
37... Ke6 {[%clk 0:00:25.6]} 38. Kc4 {[%clk 0:00:24.1]} 38... Ra5 {[%clk
0:00:25.4]} 39. Rb1 {[%clk 0:00:18]} 39... Kd7 {[%clk 0:00:26]} 40. Kb4 {[%clk
0:00:18.5]} 40... Ra6 {[%clk 0:00:24.5]} 41. Kb5 {[%clk 0:00:18.9]} 41... Ra8
{[%clk 0:00:24.3]} 42. Rd1+ {[%clk 0:00:19.7]} 42... Ke6 {[%clk 0:00:25]} 43. a5
{[%clk 0:00:21.2]} 1-0

[Event "*** MasterClass Titled Tuesday Blitz"]
[Site "Chess.com"]
[Date "2017.12.05"]
[Round "6"]
[White "visa"]
[Black "NF31415926"]
[Result "1-0"]
[WhiteElo "2183"]
[BlackElo "1996"]
[TimeControl "180+2"]
[EndTime "15:31:57 PST"]
[Termination "visa won by resignation"]

1. e4 {[%clk 0:03:01.9]} 1... c5 {[%clk 0:02:59.5]} 2. a3 {[%clk 0:03:02.5]}
2... Nc6 {[%clk 0:02:59]} 3. b4 {[%clk 0:03:02.7]} 3... cxb4 {[%clk 0:03:00.4]}
4. axb4 {[%clk 0:03:03.8]} 4... Nxb4 {[%clk 0:03:01.7]} 5. d4 {[%clk 0:03:05.3]}
5... e6 {[%clk 0:03:01.5]} 6. c3 {[%clk 0:03:06.1]} 6... Nc6 {[%clk 0:03:01.3]}
7. d5 {[%clk 0:03:07.5]} 7... Ne5 {[%clk 0:02:59.5]} 8. f4 {[%clk 0:03:07.9]}
8... Ng6 {[%clk 0:02:59.9]} 9. Nf3 {[%clk 0:03:01.1]} 9... Bc5 {[%clk 0:02:59]}
10. Ba3 {[%clk 0:02:58.9]} 10... Bxa3 {[%clk 0:02:58.2]} 11. Nxa3 {[%clk
0:02:58.4]} 11... Nxf4 {[%clk 0:02:55]} 12. Qd4 {[%clk 0:02:46.6]} 12... Nf6
{[%clk 0:02:47.7]} 13. Nb5 {[%clk 0:02:28.7]} 13... O-O {[%clk 0:02:41.7]} 14.
Rxa7 {[%clk 0:02:28.7]} 14... Rxa7 {[%clk 0:02:40.8]} 15. Nxa7 {[%clk
0:02:29.6]} 15... Qa5 {[%clk 0:02:29.3]} 16. g3 {[%clk 0:02:24]} 16... Ng6
{[%clk 0:02:13.3]} 17. d6 {[%clk 0:01:49.6]} 17... b6 {[%clk 0:02:04.3]} 18. Nb5
{[%clk 0:01:33.9]} 18... Ba6 {[%clk 0:02:01.6]} 19. Nc7 {[%clk 0:01:24.4]} 19...
Bxf1 {[%clk 0:02:00.8]} 20. Kxf1 {[%clk 0:01:19.4]} 20... Qa1+ {[%clk 0:01:39]}
21. Kg2 {[%clk 0:01:15.7]} 21... Qb2+ {[%clk 0:01:39.1]} 22. Qd2 {[%clk
0:00:58.9]} 22... Qa3 {[%clk 0:01:09.4]} 23. Re1 {[%clk 0:00:48.1]} 23... Qc5
{[%clk 0:01:05.2]} 24. e5 {[%clk 0:00:45.6]} 24... Ne8 {[%clk 0:00:59.4]} 25.
Qd4 {[%clk 0:00:43.8]} 25... Qc6 {[%clk 0:00:27.2]} 26. Na6 {[%clk 0:00:34.3]}
26... f6 {[%clk 0:00:27.6]} 27. Nb4 {[%clk 0:00:34.5]} 27... Qb7 {[%clk
0:00:27.6]} 28. exf6 {[%clk 0:00:28]} 28... Nxf6 {[%clk 0:00:27.7]} 29. Re3
{[%clk 0:00:23.1]} 29... h6 {[%clk 0:00:21.3]} 30. Kh3 {[%clk 0:00:21.5]} 30...
Kh7 {[%clk 0:00:21.3]} 31. Qd3 {[%clk 0:00:18.2]} 31... Ne8 {[%clk 0:00:15.8]}
32. Ne5 {[%clk 0:00:17]} 32... Rf6 {[%clk 0:00:15.8]} 33. Rf3 {[%clk 0:00:15.3]}
33... Rxf3 {[%clk 0:00:12.5]} 34. Qxg6+ {[%clk 0:00:16.2]} 34... Kg8 {[%clk
0:00:10.3]} 35. Qxe8+ {[%clk 0:00:17.1]} 35... Rf8 {[%clk 0:00:10]} 36. Qxd7
{[%clk 0:00:14.9]} 36... Qh1 {[%clk 0:00:08.9]} 37. Qxe6+ {[%clk 0:00:15.4]}
37... Kh7 {[%clk 0:00:09.6]} 38. Qg6+ {[%clk 0:00:16]} 38... Kg8 {[%clk
0:00:09.8]} 39. Qd3 {[%clk 0:00:14.3]} 39... Qf1+ {[%clk 0:00:10.6]} 40. Qxf1
{[%clk 0:00:14.9]} 40... Rxf1 {[%clk 0:00:11.8]} 41. d7 {[%clk 0:00:16.8]} 41...
Rd1 {[%clk 0:00:12.7]} 42. Nbc6 {[%clk 0:00:17.3]} 42... Kf8 {[%clk 0:00:12.9]}
43. d8=Q+ {[%clk 0:00:18.3]} 43... Rxd8 {[%clk 0:00:14.6]} 44. Nxd8 {[%clk
0:00:19.6]} 44... Ke7 {[%clk 0:00:16]} 45. Ndc6+ {[%clk 0:00:20.9]} 45... Ke6
{[%clk 0:00:17.8]} 46. c4 {[%clk 0:00:22.1]} 46... Kd6 {[%clk 0:00:18]} 47. Kg4
{[%clk 0:00:23.3]} 47... Kc5 {[%clk 0:00:19.8]} 48. Kf5 {[%clk 0:00:24.4]} 48...
b5 {[%clk 0:00:21.7]} 49. cxb5 {[%clk 0:00:25.4]} 49... Kxb5 {[%clk 0:00:23.4]}
50. Kg6 {[%clk 0:00:27.1]} 50... Kc5 {[%clk 0:00:24.5]} 51. Kxg7 {[%clk
0:00:28.7]} 51... h5 {[%clk 0:00:25.6]} 52. Kh6 {[%clk 0:00:30]} 52... h4 {[%clk
0:00:27.3]} 53. gxh4 {[%clk 0:00:31.4]} 1-0

[Event "*** MasterClass Titled Tuesday Blitz"]
[Site "Chess.com"]
[Date "2017.12.05"]
[Round "6"]
[White "jcibarra"]
[Black "JSPrepz"]
[Result "0-1"]
[WhiteElo "2666"]
[BlackElo "2570"]
[TimeControl "180+2"]
[EndTime "15:31:59 PST"]
[Termination "JSPrepz won by checkmate"]

1. e4 {[%clk 0:03:01.9]} 1... e6 {[%clk 0:03:00.9]} 2. d4 {[%clk 0:03:02.6]}
2... d5 {[%clk 0:03:02.3]} 3. Nd2 {[%clk 0:03:04.2]} 3... Be7 {[%clk 0:03:02.7]}
4. e5 {[%clk 0:03:04.2]} 4... c5 {[%clk 0:03:03]} 5. c3 {[%clk 0:03:05.7]} 5...
Nc6 {[%clk 0:03:02.3]} 6. Bd3 {[%clk 0:03:07.2]} 6... cxd4 {[%clk 0:03:00.9]} 7.
cxd4 {[%clk 0:03:09.1]} 7... Qb6 {[%clk 0:03:01.7]} 8. Ndf3 {[%clk 0:03:09.5]}
8... Bd7 {[%clk 0:03:00.4]} 9. Ne2 {[%clk 0:03:09.4]} 9... Nb4 {[%clk
0:03:00.3]} 10. Bb1 {[%clk 0:03:10.9]} 10... Bb5 {[%clk 0:03:00.2]} 11. O-O
{[%clk 0:03:12.3]} 11... Qa6 {[%clk 0:03:01.5]} 12. Re1 {[%clk 0:03:13.6]} 12...
Nd3 {[%clk 0:03:02.4]} 13. Bxd3 {[%clk 0:03:14.7]} 13... Bxd3 {[%clk 0:03:04.3]}
14. Nc3 {[%clk 0:03:16]} 14... Bb5 {[%clk 0:02:52]} 15. Nxb5 {[%clk 0:03:06]}
15... Qxb5 {[%clk 0:02:53.9]} 16. Bg5 {[%clk 0:03:04.6]} 16... Bxg5 {[%clk
0:02:52.1]} 17. Nxg5 {[%clk 0:03:05.4]} 17... Ne7 {[%clk 0:02:53]} 18. Re3
{[%clk 0:02:48.5]} 18... Nf5 {[%clk 0:02:44.8]} 19. Rb3 {[%clk 0:02:47.8]} 19...
Qa6 {[%clk 0:02:44.9]} 20. Qh5 {[%clk 0:02:36]} 20... g6 {[%clk 0:02:44.9]} 21.
Qg4 {[%clk 0:02:30.7]} 21... h6 {[%clk 0:02:44]} 22. Nf3 {[%clk 0:02:26.7]}
22... Rc8 {[%clk 0:02:45.2]} 23. Qf4 {[%clk 0:02:23.4]} 23... g5 {[%clk
0:02:30.7]} 24. Qd2 {[%clk 0:02:23.7]} 24... g4 {[%clk 0:02:31.8]} 25. Ne1
{[%clk 0:02:22.7]} 25... Rc4 {[%clk 0:02:30.9]} 26. Nc2 {[%clk 0:02:19.2]} 26...
Qc6 {[%clk 0:02:23.9]} 27. Rc3 {[%clk 0:02:12.4]} 27... O-O {[%clk 0:02:19.7]}
28. Rc1 {[%clk 0:01:15.2]} 28... Rc8 {[%clk 0:02:15.7]} 29. Ne3 {[%clk
0:01:12.5]} 29... Nxe3 {[%clk 0:02:10.3]} 30. Qxe3 {[%clk 0:01:05.8]} 30... Qb6
{[%clk 0:02:08.2]} 31. Rxc4 {[%clk 0:00:47.5]} 31... Rxc4 {[%clk 0:01:55.3]} 32.
Rd1 {[%clk 0:00:16.5]} 32... Qxb2 {[%clk 0:01:34.4]} 33. Qxh6 {[%clk 0:00:17.6]}
33... Rxd4 {[%clk 0:01:19.6]} 34. Qg5+ {[%clk 0:00:18.5]} 34... Kf8 {[%clk
0:01:19.4]} 35. Qd8+ {[%clk 0:00:19.5]} 35... Kg7 {[%clk 0:01:20.9]} 36. Qf6+
{[%clk 0:00:20]} 36... Kf8 {[%clk 0:01:22.3]} 37. Qd8+ {[%clk 0:00:21]} 37...
Kg7 {[%clk 0:01:23.7]} 38. Qg5+ {[%clk 0:00:22.6]} 38... Kh7 {[%clk 0:01:25.2]}
39. Rf1 {[%clk 0:00:17.4]} 39... Qd2 {[%clk 0:01:19.1]} 40. Qe7 {[%clk
0:00:15.6]} 40... Qf4 {[%clk 0:01:14.4]} 41. Qxb7 {[%clk 0:00:14.8]} 41... Re4
{[%clk 0:01:10.2]} 42. Qxa7 {[%clk 0:00:15.1]} 42... Rxe5 {[%clk 0:01:11.7]} 43.
a4 {[%clk 0:00:16]} 43... d4 {[%clk 0:01:09.1]} 44. a5 {[%clk 0:00:17.4]} 44...
d3 {[%clk 0:01:10.7]} 45. Qc7 {[%clk 0:00:15.8]} 45... d2 {[%clk 0:01:08.3]} 46.
Qc2+ {[%clk 0:00:14.4]} 46... Kh6 {[%clk 0:00:58.3]} 47. g3 {[%clk 0:00:15.5]}
47... Qd4 {[%clk 0:00:54.5]} 48. a6 {[%clk 0:00:08.2]} 48... Re1 {[%clk
0:00:52.4]} 49. a7 {[%clk 0:00:03.6]} 49... Rxf1+ {[%clk 0:00:52.7]} 50. Kg2
{[%clk 0:00:05.5]} 50... Qxf2# {[%clk 0:00:52.5]} 0-1

[Event "*** MasterClass Titled Tuesday Blitz"]
[Site "Chess.com"]
[Date "2017.12.05"]
[Round "6"]
[White "pedromartinez91"]
[Black "Vamostodorecto"]
[Result "0-1"]
[WhiteElo "2235"]
[BlackElo "2328"]
[TimeControl "180+2"]
[EndTime "15:32:05 PST"]
[Termination "Vamostodorecto won by resignation"]

1. Nf3 {[%clk 0:02:56.2]} 1... d5 {[%clk 0:02:59.5]} 2. c4 {[%clk 0:02:56.4]}
2... Nf6 {[%clk 0:02:59]} 3. cxd5 {[%clk 0:02:57]} 3... Nxd5 {[%clk 0:03:00.9]}
4. Nc3 {[%clk 0:02:57.5]} 4... Nb6 {[%clk 0:03:02.8]} 5. g3 {[%clk 0:02:52.8]}
5... g6 {[%clk 0:03:03.4]} 6. Bg2 {[%clk 0:02:54.7]} 6... Bg7 {[%clk 0:03:04.9]}
7. h4 {[%clk 0:02:55.4]} 7... Nc6 {[%clk 0:03:04.4]} 8. h5 {[%clk 0:02:56.4]}
8... Bg4 {[%clk 0:03:00.7]} 9. hxg6 {[%clk 0:02:56.7]} 9... hxg6 {[%clk
0:03:02.6]} 10. Rxh8+ {[%clk 0:02:57.1]} 10... Bxh8 {[%clk 0:03:04.5]} 11. d3
{[%clk 0:02:58.6]} 11... Qd7 {[%clk 0:03:03.4]} 12. Bd2 {[%clk 0:02:59.1]} 12...
O-O-O {[%clk 0:03:02.5]} 13. a3 {[%clk 0:02:59.6]} 13... Nd4 {[%clk 0:03:00]}
14. Nxd4 {[%clk 0:02:59.8]} 14... Bxd4 {[%clk 0:03:01.6]} 15. Rc1 {[%clk
0:02:54.7]} 15... Bh3 {[%clk 0:03:00.8]} 16. Bf3 {[%clk 0:02:53.1]} 16... Bg4
{[%clk 0:02:59.9]} 17. Bg2 {[%clk 0:02:52.9]} 17... Qf5 {[%clk 0:02:57]} 18. Bf4
{[%clk 0:02:47.4]} 18... e5 {[%clk 0:02:54.8]} 19. Nb5 {[%clk 0:02:47.9]} 19...
c6 {[%clk 0:02:35.2]} 20. Nxd4 {[%clk 0:02:44.1]} 20... Rxd4 {[%clk 0:02:37.1]}
21. Be3 {[%clk 0:02:43.9]} 21... Rd7 {[%clk 0:02:27.8]} 22. f3 {[%clk
0:02:44.3]} 22... Bh3 {[%clk 0:02:14.9]} 23. g4 {[%clk 0:02:44.6]} 23... Qf6
{[%clk 0:02:11.6]} 24. Bxh3 {[%clk 0:02:39.4]} 24... Qh4+ {[%clk 0:02:10.9]} 25.
Bf2 {[%clk 0:02:34.1]} 25... Qxh3 {[%clk 0:02:10.6]} 26. Bxb6 {[%clk 0:02:29.8]}
26... axb6 {[%clk 0:02:12.5]} 27. Kd2 {[%clk 0:02:30.6]} 27... e4 {[%clk
0:02:10.2]} 28. fxe4 {[%clk 0:02:30.3]} 28... Qxg4 {[%clk 0:02:09.6]} 29. Kc2
{[%clk 0:02:31.3]} 29... b5 {[%clk 0:02:03.1]} 30. Qf1 {[%clk 0:02:31.1]} 30...
Kc7 {[%clk 0:02:00.2]} 31. Qf3 {[%clk 0:02:31.1]} 31... Qe6 {[%clk 0:01:58.8]}
32. Rh1 {[%clk 0:02:28.4]} 32... Qd6 {[%clk 0:01:57.4]} 33. Qf2 {[%clk
0:02:25.2]} 33... b4 {[%clk 0:01:57.2]} 34. axb4 {[%clk 0:02:22.4]} 34... Qxb4
{[%clk 0:01:59.1]} 35. Rh7 {[%clk 0:02:23.3]} 35... Qe7 {[%clk 0:01:53.3]} 36.
e5 {[%clk 0:02:18.1]} 36... c5 {[%clk 0:01:39.8]} 37. Qf4 {[%clk 0:02:15.8]}
37... Kb6 {[%clk 0:01:37.8]} 38. Rg7 {[%clk 0:01:56.8]} 38... Qe6 {[%clk
0:01:36.4]} 39. Qf6 {[%clk 0:01:51.6]} 39... Qxf6 {[%clk 0:01:30.4]} 40. exf6
{[%clk 0:01:53.5]} 40... Kc6 {[%clk 0:01:31]} 41. Kc3 {[%clk 0:01:52.6]} 41...
Kd5 {[%clk 0:01:29.9]} 42. b4 {[%clk 0:01:51]} 42... cxb4+ {[%clk 0:01:28.9]}
43. Kxb4 {[%clk 0:01:52.9]} 43... Ke5 {[%clk 0:01:30.5]} 44. Rh7 {[%clk
0:01:52.1]} 44... Kxf6 {[%clk 0:01:31]} 45. Kc4 {[%clk 0:01:53.1]} 45... g5
{[%clk 0:01:29.1]} 46. d4 {[%clk 0:01:53.9]} 46... Kg6 {[%clk 0:01:28]} 47. Rh1
{[%clk 0:01:55.3]} 47... f5 {[%clk 0:01:28.4]} 48. e4 {[%clk 0:01:57.2]} 48...
fxe4 {[%clk 0:01:28.5]} 49. d5 {[%clk 0:01:59.1]} 49... Re7 {[%clk 0:00:57.2]}
50. Re1 {[%clk 0:02:01]} 50... Kf6 {[%clk 0:00:53]} 51. Kd4 {[%clk 0:02:02.9]}
51... e3 {[%clk 0:00:49.5]} 52. d6 {[%clk 0:02:02.8]} 52... Re6 {[%clk
0:00:49.4]} 53. Kd5 {[%clk 0:02:03.7]} 53... Re5+ {[%clk 0:00:45.2]} 54. Kd4
{[%clk 0:02:00.4]} 54... Ke6 {[%clk 0:00:44.4]} 55. d7 {[%clk 0:01:55]} 55...
Rd5+ {[%clk 0:00:44]} 56. Kxe3 {[%clk 0:01:55.7]} 56... Kxd7 {[%clk 0:00:43.3]}
57. Rb1 {[%clk 0:01:54.8]} 57... b5 {[%clk 0:00:42.7]} 58. Ke4 {[%clk
0:01:54.8]} 58... Kc6 {[%clk 0:00:42.9]} 59. Rc1+ {[%clk 0:01:55.5]} 59... Rc5
{[%clk 0:00:43.2]} 60. Rh1 {[%clk 0:01:57.4]} 60... b4 {[%clk 0:00:43.1]} 61.
Kd4 {[%clk 0:01:57.5]} 61... Kb5 {[%clk 0:00:34.4]} 62. Rh8 {[%clk 0:01:54.4]}
62... Rc4+ {[%clk 0:00:35.1]} 63. Kd3 {[%clk 0:01:55]} 63... Rc3+ {[%clk
0:00:34.3]} 64. Kd2 {[%clk 0:01:55.8]} 64... g4 {[%clk 0:00:33.1]} 65. Rb8+
{[%clk 0:01:56.4]} 65... Ka4 {[%clk 0:00:31.8]} 66. Ra8+ {[%clk 0:01:57.6]}
66... Kb3 {[%clk 0:00:32.9]} 67. Rh8 {[%clk 0:01:56.8]} 67... g3 {[%clk
0:00:33.5]} 68. Rh3 {[%clk 0:01:58.7]} 68... g2 {[%clk 0:00:32.2]} 0-1

[Event "*** MasterClass Titled Tuesday Blitz"]
[Site "Chess.com"]
[Date "2017.12.05"]
[Round "6"]
[White "MultiWebCreation"]
[Black "Sola00"]
[Result "0-1"]
[WhiteElo "1330"]
[BlackElo "1529"]
[TimeControl "180+2"]
[EndTime "15:32:11 PST"]
[Termination "Sola00 won on time"]

1. e4 {[%clk 0:03:01.1]} 1... e6 {[%clk 0:02:58.5]} 2. d4 {[%clk 0:03:00.1]}
2... d5 {[%clk 0:02:59.5]} 3. Nd2 {[%clk 0:02:58.9]} 3... c5 {[%clk 0:02:59.1]}
4. Ngf3 {[%clk 0:02:51.7]} 4... Nc6 {[%clk 0:02:53.1]} 5. Bb5 {[%clk 0:02:51.4]}
5... Qb6 {[%clk 0:02:52.5]} 6. a4 {[%clk 0:02:47]} 6... a6 {[%clk 0:02:53.1]} 7.
Bxc6+ {[%clk 0:02:43.5]} 7... Qxc6 {[%clk 0:02:55]} 8. e5 {[%clk 0:02:36.1]}
8... Bd7 {[%clk 0:02:51]} 9. O-O {[%clk 0:02:36.7]} 9... Rc8 {[%clk 0:02:52.1]}
10. Nb3 {[%clk 0:02:28.2]} 10... Ne7 {[%clk 0:02:51.1]} 11. Be3 {[%clk
0:02:26.6]} 11... Nf5 {[%clk 0:02:49.5]} 12. Na5 {[%clk 0:02:21.5]} 12... Nxe3
{[%clk 0:02:34.6]} 13. fxe3 {[%clk 0:02:08.9]} 13... Qc7 {[%clk 0:02:33.5]} 14.
Nb3 {[%clk 0:02:06.1]} 14... cxd4 {[%clk 0:02:32.4]} 15. Nbxd4 {[%clk
0:02:03.2]} 15... Be7 {[%clk 0:02:26]} 16. c3 {[%clk 0:02:03.9]} 16... O-O
{[%clk 0:02:25.2]} 17. Rc1 {[%clk 0:02:05.3]} 17... Bxa4 {[%clk 0:02:23.6]} 18.
Qd2 {[%clk 0:02:03.9]} 18... Qc4 {[%clk 0:02:16.3]} 19. Ne1 {[%clk 0:01:53.8]}
19... Bb5 {[%clk 0:02:15]} 20. Nef3 {[%clk 0:01:49.2]} 20... Qd3 {[%clk
0:02:04.8]} 21. Rfd1 {[%clk 0:01:45]} 21... Qxd2 {[%clk 0:02:05.3]} 22. Nxd2
{[%clk 0:01:45.3]} 22... Bg5 {[%clk 0:02:01.3]} 23. Nxb5 {[%clk 0:01:40.3]}
23... axb5 {[%clk 0:02:02]} 24. Kf2 {[%clk 0:01:41.2]} 24... f6 {[%clk
0:02:01.8]} 25. exf6 {[%clk 0:01:26]} 25... Rxf6+ {[%clk 0:01:59.9]} 26. Ke2
{[%clk 0:01:26.2]} 26... Rcf8 {[%clk 0:01:58.9]} 27. Rf1 {[%clk 0:01:26.7]}
27... Rxf1 {[%clk 0:01:59.8]} 28. Rxf1 {[%clk 0:01:27.5]} 28... Rxf1 {[%clk
0:02:01.4]} 29. Nxf1 {[%clk 0:01:28.2]} 29... Kf7 {[%clk 0:02:02.3]} 30. Kd3
{[%clk 0:01:28.6]} 30... e5 {[%clk 0:02:01.7]} 31. Ng3 {[%clk 0:01:25.2]} 31...
Ke6 {[%clk 0:02:01.5]} 32. Ne2 {[%clk 0:01:19.6]} 32... b6 {[%clk 0:01:59.8]}
33. Nc1 {[%clk 0:01:19.4]} 33... Be7 {[%clk 0:01:48.9]} 34. e4 {[%clk
0:01:11.4]} 34... b4 {[%clk 0:01:44.4]} 35. exd5+ {[%clk 0:01:08.3]} 35... Kxd5
{[%clk 0:01:46.3]} 36. cxb4 {[%clk 0:01:08.2]} 36... Bxb4 {[%clk 0:01:48.2]} 37.
Ne2 {[%clk 0:01:06.9]} 37... e4+ {[%clk 0:01:42.6]} 38. Kc2 {[%clk 0:00:59.9]}
38... g5 {[%clk 0:01:38.4]} 39. Kb3 {[%clk 0:00:59.2]} 39... Bd2 {[%clk
0:01:33.2]} 40. Kc2 {[%clk 0:00:59.1]} 40... e3 {[%clk 0:01:33.9]} 41. b3 {[%clk
0:00:51.8]} 41... b5 {[%clk 0:01:30.1]} 42. h3 {[%clk 0:00:50.1]} 42... Ke4
{[%clk 0:01:29.7]} 43. Ng3+ {[%clk 0:00:47.4]} 43... Kf4 {[%clk 0:01:30.2]} 44.
Nh5+ {[%clk 0:00:39.7]} 44... Ke4 {[%clk 0:01:26.1]} 45. Nf6+ {[%clk 0:00:38]}
45... Kf5 {[%clk 0:01:23.2]} 46. Nxh7 {[%clk 0:00:37.7]} 46... Kf4 {[%clk
0:01:22.9]} 47. Nf6 {[%clk 0:00:36.5]} 47... Kg3 {[%clk 0:01:24]} 48. Ne4+
{[%clk 0:00:25.5]} 48... Kxg2 {[%clk 0:01:24.2]} 49. Nxg5 {[%clk 0:00:25.9]}
49... Kf2 {[%clk 0:01:18.8]} 50. Ne4+ {[%clk 0:00:19.2]} 50... Ke1 {[%clk
0:01:20.1]} 51. h4 {[%clk 0:00:13.7]} 51... Bb4 {[%clk 0:01:15.8]} 52. Ng3
{[%clk 0:00:06.4]} 52... Kf2 {[%clk 0:01:09.6]} 53. h5 {[%clk 0:00:02.1]} 53...
Kxg3 {[%clk 0:01:02.3]} 0-1